bitfinex-derivatives/quotes_BTCF0:USTF0_20230702
["timestamp","ask_amount","ask_price","bid_price","bid_amount"]
[1688338865250,0.058714,30659.0,30656.0,0.51747227]
[1688338865432,0.058714,30659.0,30658.0,0.2464]
[1688338865634,0.00048928,30661.0,30658.0,0.48189213]
[1688338865856,0.00048928,30661.0,30660.0,0.2468]
[1688338866142,0.02005828,30661.0,30660.0,0.48229113]
[1688338866338,0.345722,30663.0,30660.0,0.48229113]
[1688338866546,0.345722,30663.0,30662.0,0.2468]
[1688338866846,0.36780116,30663.0,30662.0,0.2468]
[1688338867346,0.72860116,30663.0,30662.0,0.2468]
[1688338867842,0.72860116,30663.0,30662.0,0.266369]
[1688338868041,0.75065507,30663.0,30662.0,0.28521845]
[1688338868243,0.75065507,30663.0,30662.0,0.266369]
[1688338868777,0.5759782,30663.0,30662.0,0.266369]
[1688338868954,0.65291689,30663.0,30662.0,0.266369]
[1688338869543,0.32373869,30663.0,30662.0,0.266369]
[1688338869747,0.32758816,30663.0,30662.0,0.266369]
[1688338872055,0.305509,30663.0,30662.0,0.28521845]
[1688338872239,0.058709,30663.0,30662.0,0.64601845]
[1688338872550,0.019568,30664.0,30662.0,0.88012917]
[1688338872743,0.019568,30664.0,30663.0,0.26564945]
[1688338872940,0.019568,30664.0,30663.0,0.28521745]
[1688338873140,0.019568,30664.0,30663.0,0.30344714]
[1688338873443,0.28844716,30664.0,30663.0,0.263868]
[1688338874144,0.27021747,30664.0,30663.0,0.263868]
[1688338874346,0.28459769,30664.0,30663.0,0.263868]
[1688338874549,0.266368,30664.0,30663.0,0.263868]
[1688338874844,0.266368,30664.0,30663.0,0.28271745]
[1688338875038,0.28459769,30664.0,30663.0,0.28271745]
[1688338876199,0.28459769,30664.0,30663.0,0.263868]
[1688338876461,0.28844716,30664.0,30663.0,0.263868]
[1688338876853,0.28844716,30664.0,30663.0,0.28271745]
[1688338876854,0.266368,30664.0,30663.0,0.28271745]
[1688338877254,0.266368,30664.0,30663.0,0.5168231]
[1688338877449,0.266368,30664.0,30663.0,0.49859341]
[1688338878371,0.266368,30664.0,30663.0,0.62789065]
[1688338879045,0.18478206,30664.0,30663.0,0.62789065]
[1688338879250,0.20434906,30664.0,30663.0,0.62789065]
[1688338879753,0.20434906,30664.0,30663.0,0.64612034]
[1688338880058,0.20434906,30664.0,30663.0,0.5168231]
[1688338880357,0.058702,30665.0,30663.0,0.67959477]
[1688338880358,0.2468,30665.0,30663.0,0.67959477]
[1688338880655,0.11627006,30665.0,30664.0,0.5193221]
[1688338881457,0.05425606,30665.0,30664.0,0.5193221]
[1688338881759,0.05425606,30665.0,30664.0,0.50109241]
[1688338882696,0.26801647,30665.0,30664.0,0.36480382]
[1688338883254,0.28624616,30665.0,30664.0,0.36480382]
[1688338883754,0.28624616,30665.0,30664.0,0.23544296]
[1688338885858,0.264167,30665.0,30664.0,0.23544296]
[1688338886150,0.264167,30665.0,30664.0,0.41524432]
[1688338886360,0.264167,30665.0,30664.0,0.41586408]
[1688338886649,0.00048919,30666.0,30664.0,0.73049377]
[1688338886904,0.02005519,30666.0,30665.0,0.66160924]
[1688338887251,0.02005519,30666.0,30665.0,0.67983893]
[1688338889452,0.305499,30667.0,30665.0,0.64275979]
[1688338889655,0.305499,30667.0,30666.0,0.62449279]
[1688338889964,0.32372869,30667.0,30666.0,0.64405879]
[1688338890272,0.26040041,30667.0,30666.0,0.48224196]
[1688338890455,0.2786301,30667.0,30666.0,0.78824196]
[1688338890653,0.2786301,30667.0,30666.0,0.52187596]
[1688338890654,0.32757816,30667.0,30666.0,0.52187596]
[1688338890852,0.32757816,30667.0,30666.0,0.65151133]
[1688338891769,0.32757816,30667.0,30666.0,0.68369279]
[1688338892191,0.32757816,30667.0,30666.0,0.70325879]
[1688338893755,0.32757816,30667.0,30666.0,0.54144196]
[1688338895076,0.32757816,30667.0,30666.0,0.6842288]
[1688338895388,0.32757816,30667.0,30666.0,0.21587596]
[1688338896863,0.32757816,30667.0,30665.0,0.21587596]
[1688338897052,0.2468,30666.0,30665.0,0.21587596]
[1688338897373,0.28844516,30666.0,30665.0,0.21587596]
[1688338897870,0.28844516,30666.0,30665.0,0.23544296]
[1688338899070,0.266366,30666.0,30665.0,0.25429241]
[1688338899562,0.18478329,30666.0,30665.0,0.30868792]
[1688338899765,0.18478329,30666.0,30665.0,0.32691761]
[1688338900161,0.18478329,30666.0,30665.0,0.25429241]
[1688338900358,0.20686245,30666.0,30665.0,0.23544296]
[1688338900764,0.18478329,30666.0,30665.0,0.23544296]
[1688338901263,0.20686245,30666.0,30665.0,0.23544296]
[1688338903654,0.20686245,30666.0,30665.0,0.1818612]
[1688338903859,0.20686245,30666.0,30665.0,0.39773716]
[1688338905371,0.20686245,30666.0,30665.0,0.39784639]
[1688338905571,0.18863276,30666.0,30665.0,0.39784639]
[1688338906364,0.20686245,30666.0,30665.0,0.39784639]
[1688338908172,0.20686245,30666.0,30665.0,0.37827939]
[1688338908666,0.57416245,30666.0,30665.0,0.37827939]
[1688338908870,0.57416245,30666.0,30665.0,0.21587596]
[1688338910660,0.56766245,30666.0,30665.0,0.21587596]
[1688338911361,0.56766245,30666.0,30665.0,0.39784639]
[1688338911762,0.56766245,30666.0,30665.0,0.21587596]
[1688338914273,0.54558329,30666.0,30665.0,0.23544196]
[1688338914576,0.54558329,30666.0,30665.0,0.41607508]
[1688338914815,0.54558329,30666.0,30665.0,0.39784539]
[1688338914966,0.54558329,30666.0,30665.0,0.41669484]
[1688338917001,0.54558329,30666.0,30665.0,0.43492453]
[1688338917378,0.54558329,30666.0,30665.0,0.39784539]
[1688338917774,0.54558329,30666.0,30665.0,0.23544196]
[1688338919980,0.54943276,30666.0,30665.0,0.23544196]
[1688338920677,0.56766245,30666.0,30665.0,0.23544196]
[1688338920981,0.54943276,30666.0,30665.0,0.23544196]
[1688338922273,0.54558329,30666.0,30665.0,0.2725211]
[1688338923082,0.54558329,30666.0,30665.0,0.25429141]
[1688338923684,0.56381298,30666.0,30665.0,0.23544196]
[1688338923981,0.56766245,30666.0,30665.0,0.23544196]
[1688338924985,0.54943276,30666.0,30665.0,0.23544196]
[1688338925885,0.56766245,30666.0,30665.0,0.23544196]
[1688338926504,0.56766245,30666.0,30665.0,0.39805931]
[1688338927383,0.56766245,30666.0,30665.0,0.21587596]
[1688338927605,0.56766245,30666.0,30665.0,0.34601905]
[1688338927986,0.58666245,30666.0,30665.0,0.34601905]
[1688338928383,0.58666245,30666.0,30665.0,0.21587596]
[1688338928891,0.56766245,30666.0,30665.0,0.34599545]
[1688338931188,0.266367,30665.0,30664.0,0.13011949]
[1688338931391,0.83574616,30665.0,30664.0,0.13011949]
[1688338931576,0.83574616,30665.0,30664.0,0.30135527]
[1688338931807,0.83574616,30665.0,30664.0,0.29677595]
[1688338931978,0.83574616,30665.0,30664.0,0.08087752]
[1688338932847,0.83574616,30665.0,30664.0,0.21589843]
[1688338932984,0.83574616,30665.0,30663.0,0.37851578]
[1688338933207,0.566867,30665.0,30664.0,0.21589843]
[1688338933385,0.83574616,30665.0,30663.0,0.37851578]
[1688338933587,0.568367,30665.0,30664.0,0.21589843]
[1688338933778,0.83724616,30665.0,30663.0,0.37851578]
[1688338933985,0.2468,30664.0,30663.0,0.37851578]
[1688338934290,0.266367,30664.0,30663.0,0.37851578]
[1688338934693,0.28844616,30664.0,30663.0,0.21589843]
[1688338935194,0.23948965,30664.0,30663.0,0.21589843]
[1688338936095,0.23948965,30664.0,30663.0,0.19098044]
[1688338936096,0.60028965,30664.0,30663.0,0.19098044]
[1688338936406,0.60028965,30664.0,30660.0,0.00048918]
[1688338936704,0.627169,30661.0,30660.0,0.00048918]
[1688338937090,0.627169,30661.0,30660.0,0.01548918]
[1688338937299,0.64924816,30661.0,30660.0,0.01548918]
[1688338940599,0.64924816,30661.0,30657.0,0.336871]
[1688338940799,0.2468,30658.0,30657.0,0.336871]
[1688338941096,0.54556663,30658.0,30656.0,0.05]
[1688338941296,0.26887916,30657.0,30656.0,0.05]
[1688338941488,0.28845116,30657.0,30656.0,0.05]
[1688338943196,0.28845116,30657.0,30656.0,0.069572]
[1688338944100,0.04165116,30657.0,30656.0,0.069572]
[1688338946090,0.28845116,30657.0,30656.0,0.0703889]
[1688338949327,0.28845116,30657.0,30656.0,0.0008169]
[1688338951213,0.89773797,30657.0,30655.0,0.06497701]
[1688338951482,0.0718,30655.0,30648.0,0.019577]
[1688338951607,0.6052,30649.0,30648.0,0.019577]
[1688338951795,0.64685616,30649.0,30648.0,0.23555508]
[1688338952105,0.64685616,30649.0,30648.0,0.25055508]
[1688338952507,0.64685616,30649.0,30648.0,0.23097808]
[1688338952700,0.89275616,30649.0,30648.0,0.015]
[1688338953007,0.89275616,30649.0,30648.0,0.01883929]
[1688338953205,0.89275616,30649.0,30648.0,0.015]
[1688338953614,0.89275616,30649.0,30648.0,0.00569868]
[1688338955106,0.89275616,30649.0,30645.0,0.00048941]
[1688338955107,0.019578,30647.0,30642.0,0.162249]
[1688338955301,0.624781,30643.0,30642.0,0.162249]
[1688338955497,0.54314216,30643.0,30642.0,0.162249]
[1688338955810,0.54699163,30643.0,30642.0,0.21601745]
[1688338956002,0.54699163,30643.0,30642.0,0.16212816]
[1688338956195,0.54699163,30643.0,30642.0,0.18170916]
[1688338956413,0.26783047,30643.0,30642.0,0.39772661]
[1688338956725,0.13336513,30643.0,30642.0,0.2544479]
[1688338956804,0.13336513,30643.0,30642.0,0.41656846]
[1688338957017,0.13336513,30643.0,30642.0,0.8685479]
[1688338957316,0.13336513,30643.0,30642.0,0.88677759]
[1688338957992,0.13336513,30643.0,30642.0,0.52597759]
[1688338959038,0.13336513,30643.0,30642.0,0.52712588]
[1688338960817,0.048952,30644.0,30642.0,0.88792588]
[1688338961006,0.06575452,30646.0,30644.0,0.05]
[1688338961312,0.06575452,30646.0,30645.0,0.627179]
[1688338961517,0.31255452,30646.0,30645.0,0.88027559]
[1688338961811,0.31255452,30646.0,30645.0,1.04219542]
[1688338962109,0.31255452,30646.0,30645.0,1.04333809]
[1688338962313,0.31255452,30646.0,30645.0,1.0251084]
[1688338962517,0.31255452,30646.0,30645.0,0.7783084]
[1688338962700,0.31255452,30646.0,30645.0,0.25558857]
[1688338964018,0.24725053,30646.0,30645.0,0.27381826]
[1688338964225,0.30599353,30646.0,30645.0,0.27381826]
[1688338964606,0.30599353,30646.0,30645.0,0.25558857]
[1688338965318,0.30599353,30646.0,30645.0,0.27381826]
[1688338965574,0.30599353,30646.0,30645.0,0.25558857]
[1688338966647,0.30599353,30646.0,30645.0,0.27381826]
[1688338966820,0.22629353,30646.0,30645.0,0.27381826]
[1688338967016,0.058734,30648.0,30646.0,0.0065]
[1688338967215,0.058734,30648.0,30647.0,0.43298631]
[1688338967216,0.305534,30648.0,30647.0,0.43298631]
[1688338967630,0.305534,30648.0,30647.0,0.51947459]
[1688338967829,0.305534,30648.0,30647.0,0.5242343]
[1688338968120,0.305534,30648.0,30647.0,0.68729305]
[1688338968761,0.17493987,30648.0,30647.0,0.68729305]
[1688338968914,0.23367587,30648.0,30647.0,0.68729305]
[1688338969918,0.17493987,30648.0,30647.0,0.68729305]
[1688338970419,0.09331943,30648.0,30647.0,0.68729305]
[1688338970638,0.01801943,30648.0,30647.0,0.53187322]
[1688338970875,0.00048943,30651.0,30650.0,0.05]
[1688338971137,0.24397301,30653.0,30650.0,0.85763906]
[1688338971319,0.30269701,30653.0,30652.0,0.265075]
[1688338971512,0.30269701,30653.0,30652.0,0.28392445]
[1688338971715,0.30269701,30653.0,30652.0,0.30215414]
[1688338972132,0.30269701,30653.0,30652.0,0.43283252]
[1688338972338,0.30269701,30653.0,30652.0,0.41460283]
[1688338972622,0.30269701,30653.0,30652.0,0.16910283]
[1688338972623,0.303324,30653.0,30652.0,0.16910283]
[1688338972836,0.303324,30653.0,30652.0,0.38505579]
[1688338973624,0.303324,30653.0,30652.0,0.64758548]
[1688338976323,0.303324,30653.0,30652.0,0.63250037]
[1688338976532,0.303324,30653.0,30652.0,0.65073006]
[1688338977124,0.303324,30653.0,30652.0,0.63250037]
[1688338977321,0.303324,30653.0,30652.0,0.61365092]
[1688338977525,0.664124,30653.0,30652.0,0.13382296]
[1688338977828,0.68620316,30653.0,30652.0,0.00427414]
[1688338979730,0.419524,30653.0,30652.0,0.00427414]
[1688338980042,0.305524,30653.0,30652.0,0.36935878]
[1688338980225,0.305524,30653.0,30652.0,0.40643792]
[1688338980532,0.305524,30653.0,30652.0,0.38820823]
[1688338980730,0.08426204,30654.0,30652.0,0.65073792]
[1688338980922,0.065246,30655.0,30653.0,0.48160054]
[1688338981144,0.264873,30655.0,30654.0,0.00326064]
[1688338981329,0.511673,30655.0,30652.0,0.13089033]
[1688338981534,0.6052,30653.0,30652.0,0.13089033]
[1688338981722,0.64685316,30653.0,30652.0,0.34685818]
[1688338982026,0.64685316,30653.0,30652.0,0.00112956]
[1688338983119,0.64685316,30653.0,30650.0,0.17976077]
[1688338983437,0.64685316,30653.0,30649.0,0.12976077]
[1688338983438,0.2468,30651.0,30649.0,0.12976077]
[1688338983731,0.627176,30650.0,30649.0,0.34574557]
[1688338984036,0.5839535,30650.0,30649.0,0.12976077]
[1688338985228,0.5839535,30650.0,30649.0,0.34574557]
[1688338985442,0.5839535,30650.0,30649.0,0.12976077]
[1688338985634,0.5839535,30650.0,30648.0,0.37789348]
[1688338985953,0.26262969,30649.0,30648.0,0.37789348]
[1688338986138,0.18234914,30649.0,30648.0,0.37789348]
[1688338986339,0.20057883,30649.0,30648.0,0.37789348]
[1688338986635,0.18619861,30649.0,30648.0,0.37789348]
[1688338987228,0.18619861,30649.0,30648.0,0.39747048]
[1688338987432,0.18234914,30649.0,30648.0,0.39747048]
[1688338987626,0.18234914,30649.0,30648.0,0.41570017]
[1688338987940,0.18234914,30649.0,30648.0,0.39747048]
[1688338988136,0.18234914,30649.0,30648.0,0.2355618]
[1688338988325,0.2044283,30649.0,30648.0,0.39802333]
[1688338992129,0.18619861,30649.0,30648.0,0.39802333]
[1688338992729,0.2044283,30649.0,30648.0,0.39802333]
[1688338993244,0.18619861,30649.0,30648.0,0.39802333]
[1688338993425,0.2044283,30649.0,30648.0,0.39802333]
[1688338996178,0.18619861,30649.0,30648.0,0.2355618]
[1688338998142,0.18619861,30649.0,30648.0,0.23891222]
[1688338998638,0.2044283,30649.0,30648.0,0.23891222]
[1688338999124,0.2044283,30649.0,30648.0,0.40271604]
[1688338999333,0.2044283,30649.0,30648.0,0.38313904]
[1688338999930,0.2044283,30649.0,30648.0,0.2204717]
[1688339004539,0.2044283,30649.0,30648.0,0.2400487]
[1688339004736,0.18619861,30649.0,30648.0,0.2400487]
[1688339005450,0.2044283,30649.0,30648.0,0.40271604]
[1688339006337,0.18619861,30649.0,30648.0,0.40271604]
[1688339007744,0.2044283,30649.0,30648.0,0.40271604]
[1688339007942,0.2044283,30649.0,30648.0,0.2400487]
[1688339008146,0.2044283,30649.0,30648.0,0.15426564]
[1688339008336,0.2044283,30649.0,30648.0,0.37025044]
[1688339009047,0.18234914,30649.0,30648.0,0.2400487]
[1688339009741,0.18234914,30649.0,30648.0,0.25827839]
[1688339009949,0.18234914,30649.0,30648.0,0.2400487]
[1688339010540,0.18234914,30649.0,30648.0,0.2204717]
[1688339010541,0.18619861,30649.0,30648.0,0.2204717]
[1688339010939,0.18234914,30649.0,30648.0,0.2204717]
[1688339011146,0.18234914,30649.0,30648.0,0.23870139]
[1688339011346,0.18234914,30649.0,30648.0,0.2204717]
[1688339012048,0.18619861,30649.0,30648.0,0.2204717]
[1688339012574,0.18234914,30649.0,30648.0,0.25755084]
[1688339013052,0.18234914,30649.0,30648.0,0.23932115]
[1688339013238,0.18234914,30649.0,30648.0,0.25755084]
[1688339013455,0.18234914,30649.0,30648.0,0.38907415]
[1688339013648,0.18234914,30649.0,30648.0,0.25889815]
[1688339013839,0.18234914,30649.0,30648.0,0.27712784]
[1688339015447,0.18234914,30649.0,30648.0,0.63792784]
[1688339018554,0.18234914,30649.0,30648.0,0.80059518]
[1688339019650,0.18234914,30649.0,30648.0,0.80709518]
[1688339020020,0.19734914,30649.0,30648.0,0.80709518]
[1688339020255,0.19734914,30649.0,30648.0,1.05349518]
[1688339022054,0.00586416,30649.0,30648.0,0.89082784]
[1688339022272,0.019575,30653.0,30649.0,0.03582217]
[1688339022556,0.04602546,30653.0,30652.0,0.624674]
[1688339022770,0.019575,30653.0,30652.0,0.8406588]
[1688339022961,0.266375,30653.0,30652.0,0.85950825]
[1688339023204,0.266375,30653.0,30652.0,1.04162802]
[1688339023551,0.266375,30653.0,30652.0,1.09162802]
[1688339023746,0.264175,30653.0,30652.0,0.64748606]
[1688339023963,0.264175,30653.0,30652.0,0.28668606]
[1688339024546,0.28625416,30653.0,30652.0,0.28668606]
[1688339025282,0.21905105,30653.0,30652.0,0.28668606]
[1688339025443,0.23862505,30653.0,30652.0,0.28668606]
[1688339026368,0.25685474,30653.0,30652.0,0.28668606]
[1688339026959,0.23862505,30653.0,30652.0,0.28668606]
[1688339027165,0.25685474,30653.0,30652.0,0.28668606]
[1688339027456,0.23862505,30653.0,30652.0,0.28668606]
[1688339027678,0.23862505,30653.0,30652.0,0.26711206]
[1688339027858,0.25685474,30653.0,30652.0,0.26711206]
[1688339028066,0.25685474,30653.0,30652.0,0.39738012]
[1688339030862,0.25685474,30653.0,30652.0,0.05112726]
[1688339032261,0.32216833,30653.0,30652.0,0.05112726]
[1688339036261,0.30008917,30653.0,30652.0,0.06997671]
[1688339036855,0.31831886,30653.0,30652.0,0.18139532]
[1688339037168,0.32216833,30653.0,30652.0,0.18026806]
[1688339037769,0.32216833,30653.0,30652.0,0.05]
[1688339038265,0.32216833,30653.0,30652.0,0.39737303]
[1688339040866,0.32216833,30653.0,30652.0,0.18139475]
[1688339042856,0.32216833,30653.0,30652.0,0.05112669]
[1688339043056,0.32216833,30653.0,30652.0,0.18139475]
[1688339045861,0.32216833,30653.0,30652.0,0.05112669]
[1688339046057,0.32216833,30653.0,30652.0,0.14882042]
[1688339046487,0.32216833,30653.0,30652.0,0.00112669]
[1688339046488,0.43969764,30653.0,30652.0,0.00112669]
[1688339046674,0.53698706,30653.0,30652.0,0.00112669]
[1688339046970,0.02207916,30652.0,30649.0,0.14786054]
[1688339047161,0.627176,30650.0,30648.0,0.18026806]
[1688339047379,0.27843725,30649.0,30648.0,0.18026806]
[1688339047563,0.30051641,30649.0,30648.0,0.39627226]
[1688339047959,0.60571641,30649.0,30648.0,0.39627226]
[1688339048978,0.59365516,30649.0,30648.0,0.39627226]
[1688339049967,0.60571641,30649.0,30648.0,0.39627226]
[1688339050176,0.59365516,30649.0,30648.0,0.39627226]
[1688339052967,0.571576,30649.0,30648.0,0.30381089]
[1688339053169,0.569176,30649.0,30648.0,0.54811089]
[1688339053568,0.569176,30649.0,30648.0,0.56696034]
[1688339053966,0.263976,30649.0,30648.0,0.92776034]
[1688339054376,0.263976,30649.0,30648.0,1.09052316]
[1688339054780,0.2444,30649.0,30648.0,1.09052316]
[1688339056185,0.263976,30649.0,30648.0,1.09052316]
[1688339057968,0.28963952,30649.0,30648.0,1.0952098]
[1688339060476,0.27006352,30649.0,30648.0,1.0952098]
[1688339060676,0.02566352,30649.0,30648.0,1.0952098]
[1688339060886,0.303928,30652.0,30648.0,0.93894698]
[1688339061082,0.2452,30652.0,30651.0,0.75742147]
[1688339061276,0.2452,30652.0,30651.0,0.97342567]
[1688339061477,0.11752931,30654.0,30651.0,0.84753265]
[1688339061676,0.11752931,30654.0,30653.0,0.265973]
[1688339061872,0.124019,30655.0,30653.0,0.26932915]
[1688339062086,0.124019,30655.0,30654.0,0.2449]
[1688339062329,0.124019,30655.0,30654.0,0.264473]
[1688339062484,0.369219,30655.0,30654.0,0.2697291]
[1688339062676,0.369219,30655.0,30654.0,0.28857855]
[1688339063281,0.389219,30655.0,30654.0,0.28857855]
[1688339063487,0.408219,30655.0,30654.0,0.28857855]
[1688339063684,0.43483541,30655.0,30654.0,0.28857855]
[1688339064686,0.43483541,30655.0,30654.0,0.30680824]
[1688339064895,0.43483541,30655.0,30654.0,0.28857855]
[1688339065193,0.36953541,30655.0,30654.0,0.30680824]
[1688339065540,0.31081641,30655.0,30654.0,0.30680824]
[1688339066699,0.29081641,30655.0,30654.0,0.66760824]
[1688339066996,0.29081641,30655.0,30654.0,0.66510824]
[1688339067178,0.31038841,30655.0,30654.0,0.64687855]
[1688339067384,0.32244966,30655.0,30654.0,0.64687855]
[1688339067582,0.29138841,30655.0,30654.0,0.64687855]
[1688339067801,0.29138841,30655.0,30654.0,0.28607855]
[1688339068289,0.29523788,30655.0,30654.0,0.2672291]
[1688339068810,0.29138841,30655.0,30654.0,0.30430824]
[1688339072497,0.29078841,30655.0,30654.0,0.30430824]
[1688339076389,0.29683788,30655.0,30653.0,0.3224]
[1688339076593,0.29148841,30655.0,30654.0,0.003179]
[1688339076798,0.53828841,30655.0,30653.0,0.341973]
[1688339077097,0.28845216,30654.0,30653.0,0.341973]
[1688339077687,0.27022247,30654.0,30653.0,0.341973]
[1688339078893,0.266373,30654.0,30653.0,0.36082245]
[1688339079101,0.266373,30654.0,30653.0,0.37905214]
[1688339079603,0.266373,30654.0,30653.0,0.341973]
[1688339080098,0.27022247,30654.0,30653.0,0.341973]
[1688339082913,0.266373,30654.0,30653.0,0.341973]
[1688339083096,0.266373,30654.0,30653.0,0.36020269]
[1688339084104,0.28845216,30654.0,30653.0,0.341973]
[1688339084305,0.27022247,30654.0,30653.0,0.341973]
[1688339085808,0.266373,30654.0,30653.0,0.341973]
[1688339086189,0.28845216,30654.0,30653.0,0.341973]
[1688339088400,0.64925216,30654.0,30653.0,0.3224]
[1688339088708,0.64925216,30654.0,30653.0,0.05639968]
[1688339089398,0.66925216,30654.0,30653.0,0.05639968]
[1688339089606,0.68825216,30654.0,30653.0,0.05639968]
[1688339091009,0.68825216,30654.0,30650.0,0.13023973]
[1688339091010,0.75355216,30654.0,30650.0,0.13023973]
[1688339091203,0.6076,30651.0,30647.0,0.15030612]
[1688339091515,0.6054,30648.0,30647.0,0.02006639]
[1688339091701,0.64705616,30648.0,30647.0,0.03506639]
[1688339093104,0.62882647,30648.0,30647.0,0.03506639]
[1688339094207,0.64705616,30648.0,30647.0,0.03506639]
[1688339094416,0.90334478,30648.0,30647.0,0.05329608]
[1688339094906,0.59152647,30648.0,30647.0,0.05329608]
[1688339095108,0.60975616,30648.0,30647.0,0.03506639]
[1688339095708,0.59152647,30648.0,30647.0,0.03506639]
[1688339095930,0.587677,30648.0,30647.0,0.03506639]
[1688339096919,0.59152647,30648.0,30647.0,0.03506639]
[1688339099013,0.587677,30648.0,30647.0,0.29819608]
[1688339099206,0.587677,30648.0,30647.0,1.00523813]
[1688339099918,0.587677,30648.0,30647.0,1.02408758]
[1688339100612,0.42306031,30650.0,30647.0,1.02598758]
[1688339100815,0.73066031,30650.0,30649.0,0.2443]
[1688339101000,0.42306031,30650.0,30649.0,0.66010348]
[1688339101208,0.42306031,30650.0,30649.0,0.67895293]
[1688339101432,0.2468,30650.0,30649.0,0.69718262]
[1688339101763,0.2468,30650.0,30649.0,1.05798262]
[1688339102714,0.019575,30651.0,30649.0,0.92774289]
[1688339102915,0.019575,30651.0,30650.0,0.63004115]
[1688339103118,0.019575,30651.0,30650.0,0.64961615]
[1688339103316,0.019575,30651.0,30647.0,0.05921839]
[1688339103317,0.0653,30648.0,30647.0,0.13068244]
[1688339103617,0.0653,30648.0,30640.0,0.2269987]
[1688339103618,0.0653,30641.0,30640.0,0.08136239]
[1688339103876,0.019582,30640.0,30636.0,0.13018276]
[1688339104012,0.019584,30636.0,30635.0,0.06953625]
[1688339104216,0.019584,30636.0,30633.0,0.1630633]
[1688339104217,0.019584,30636.0,30633.0,0.00017836]
[1688339104416,0.3608,30635.0,30633.0,0.00017836]
[1688339104616,0.266386,30634.0,30633.0,0.00017836]
[1688339105102,0.30346514,30634.0,30633.0,0.01517836]
[1688339106108,0.28523545,30634.0,30633.0,0.01517836]
[1688339106620,0.30346514,30634.0,30633.0,0.01517836]
[1688339107206,0.30346514,30634.0,30633.0,0.02333505]
[1688339107719,0.30346514,30634.0,30633.0,0.01517836]
[1688339108309,0.30346514,30634.0,30631.0,0.00048963]
[1688339108310,0.72966514,30634.0,30631.0,0.00048963]
[1688339108622,0.266387,30632.0,30631.0,0.00048963]
[1688339109119,0.28461669,30632.0,30627.0,0.09755065]
[1688339109422,0.2468,30628.0,30626.0,0.09755065]
[1688339109719,0.26639,30627.0,30625.0,0.6076]
[1688339109905,0.266391,30626.0,30625.0,0.6076]
[1688339110312,0.28524045,30626.0,30625.0,0.3608]
[1688339110719,0.28524045,30626.0,30625.0,0.45835065]
[1688339110908,0.28524045,30626.0,30625.0,0.3608]
[1688339111105,0.28524045,30626.0,30625.0,0.45835065]
[1688339111418,0.28524045,30626.0,30625.0,0.3608]
[1688339113620,0.20355733,30626.0,30625.0,0.3608]
[1688339113918,0.22314833,30626.0,30625.0,0.3608]
[1688339114133,0.24137802,30626.0,30625.0,0.3608]
[1688339114515,0.22314833,30626.0,30625.0,0.3608]
[1688339117319,0.06720769,30627.0,30625.0,0.6226]
[1688339117320,0.048978,30627.0,30625.0,0.6226]
[1688339117629,0.01959,30627.0,30626.0,0.6051]
[1688339117918,0.01959,30627.0,30626.0,0.62964353]
[1688339118921,0.01959,30627.0,30626.0,0.38534353]
[1688339119128,0.01959,30627.0,30622.0,0.00048979]
[1688339119129,0.26639,30627.0,30622.0,0.00048979]
[1688339119325,0.01959,30627.0,30626.0,0.00771132]
[1688339119626,0.30346914,30627.0,30623.0,0.2468]
[1688339119829,0.01959,30627.0,30626.0,0.00582429]
[1688339120025,0.01959,30627.0,30622.0,0.01548979]
[1688339120026,0.26639,30627.0,30622.0,0.01548979]
[1688339120228,0.2533,30623.0,30622.0,0.01548979]
[1688339120429,0.266393,30623.0,30622.0,0.01548979]
[1688339120817,0.28524245,30623.0,30622.0,0.01548979]
[1688339121518,0.266393,30623.0,30622.0,0.01548979]
[1688339122724,0.266393,30623.0,30622.0,0.26098979]
[1688339123326,0.28524245,30623.0,30622.0,0.26098979]
[1688339126435,0.266393,30623.0,30622.0,0.26098979]
[1688339126629,0.266393,30623.0,30622.0,0.27598979]
[1688339126936,0.266393,30623.0,30622.0,0.03638858]
[1688339128540,0.18470125,30623.0,30622.0,0.03638858]
[1688339129829,0.11934756,30623.0,30622.0,0.03638858]
[1688339130134,0.11934756,30623.0,30622.0,0.02138858]
[1688339130332,0.11934756,30623.0,30622.0,0.00638858]
[1688339130939,0.13819701,30623.0,30622.0,0.00638858]
[1688339132238,0.13819701,30623.0,30622.0,0.02138858]
[1688339132831,0.11934756,30623.0,30622.0,0.02138858]
[1688339133142,0.11934756,30623.0,30622.0,0.02204721]
[1688339134341,0.11934756,30623.0,30622.0,0.04164021]
[1688339134747,0.11934756,30623.0,30618.0,0.09755065]
[1688339134748,0.48014756,30623.0,30618.0,0.09755065]
[1688339135047,0.386895,30620.0,30619.0,0.00291083]
[1688339135244,0.72077414,30620.0,30613.0,0.09755065]
[1688339135438,0.3608,30617.0,30614.0,0.09193893]
[1688339135638,0.2444,30615.0,30614.0,0.00414051]
[1688339135942,0.263998,30615.0,30611.0,0.31998996]
[1688339136145,0.2664,30612.0,30611.0,0.00048996]
[1688339136332,0.13565695,30612.0,30611.0,0.00048996]
[1688339136848,0.0196,30612.0,30611.0,0.60808996]
[1688339137041,0.0196,30612.0,30611.0,0.63418996]
[1688339137230,0.0196,30612.0,30611.0,0.64918996]
[1688339137437,0.0588,30614.0,30611.0,1.04931862]
[1688339137734,0.0588,30614.0,30613.0,0.265099]
[1688339138331,0.264798,30614.0,30613.0,0.015]
[1688339138531,0.28302769,30614.0,30612.0,0.2464]
[1688339138733,0.28304845,30613.0,30611.0,0.00048996]
[1688339138951,0.26502969,30612.0,30611.0,0.00048996]
[1688339139137,0.28462969,30612.0,30611.0,0.00048996]
[1688339139341,0.30347914,30612.0,30611.0,0.00048996]
[1688339139544,0.20353164,30612.0,30611.0,0.00048996]
[1688339140249,0.20353164,30612.0,30604.0,0.14453695]
[1688339140250,0.0065,30606.0,30604.0,0.14453695]
[1688339140448,0.0065,30606.0,30604.0,0.03]
[1688339140449,0.019604,30605.0,30604.0,0.03]
[1688339140632,0.019604,30605.0,30604.0,0.23582959]
[1688339140946,0.264004,30605.0,30604.0,0.019605]
[1688339141241,0.264004,30605.0,30602.0,0.015]
[1688339141242,0.270504,30605.0,30602.0,0.015]
[1688339141441,0.2446,30603.0,30601.0,0.00049012]
[1688339141646,0.2444,30602.0,30601.0,0.00049012]
[1688339141845,0.264006,30602.0,30601.0,0.36129012]
[1688339142045,0.2444,30602.0,30601.0,0.38089712]
[1688339142347,0.2468,30605.0,30601.0,0.98615798]
[1688339142549,0.2468,30605.0,30604.0,0.2468]
[1688339142843,0.26502969,30605.0,30602.0,0.00422081]
[1688339143044,0.26502969,30605.0,30596.0,0.12967906]
[1688339143045,0.019606,30602.0,30596.0,0.12967906]
[1688339143247,0.2468,30597.0,30596.0,0.36559654]
[1688339143551,0.2468,30597.0,30596.0,0.23591748]
[1688339143552,0.16504919,30597.0,30596.0,0.23591748]
[1688339143844,0.16504919,30597.0,30596.0,0.39802654]